fUST/lending_fUST_20240902
["ID","MTS","AMOUNT","RATE_DAILY","PERIOD"]
[336883399,1725231042914,-500.0,0.00024657,2]
[336883400,1725231042923,-500.0,0.00024657,2]
[336883402,1725231042933,-500.0,0.00024657,2]
[336883404,1725231042943,-2956.97,0.00024657,2]
[336883406,1725231042962,-500.0,0.00024657,2]
[336883409,1725231042971,-500.0,0.00024657,2]
[336883411,1725231042981,-2744.2,0.00024657,2]
[336883414,1725231042990,-231.81405816,0.00024657,2]
[336883417,1725231043000,-500.0,0.00024657,2]
[336883420,1725231043009,-500.0,0.00024657,2]
[336883423,1725231043019,-792.31,0.00024657,2]
[336883426,1725231043028,-500.0,0.00024657,2]
[336883427,1725231043037,-500.0,0.00024657,2]
[336883429,1725231043046,-500.0,0.00024657,2]
[336883431,1725231043056,-500.0,0.00024657,2]
[336883432,1725231043071,-500.0,0.00024657,2]
[336883433,1725231043080,-500.0,0.00024657,2]
[336883435,1725231043089,-500.0,0.00024657,2]
[336883437,1725231043099,-500.0,0.00024657,2]
[336883439,1725231043109,-500.0,0.00024657,2]
[336883440,1725231043118,-500.0,0.00024657,2]
[336883441,1725231043128,-263.14957392,0.00024657,2]
[336883442,1725231043138,-500.0,0.00024657,2]
[336883443,1725231043150,-1066.0,0.00024657,2]
[336883444,1725231043159,-500.0,0.00024657,2]
[336883445,1725231043169,-1769.05,0.00024657,2]
[336883446,1725231043179,-805.35,0.00024657,2]
[336883447,1725231043188,-500.0,0.00024657,2]
[336883448,1725231043198,-500.0,0.00024657,2]
[336883449,1725231043210,-12931.66,0.00024657,2]
[336883450,1725231043219,-638.17,0.00024657,2]
[336883451,1725231043228,-500.0,0.00024657,2]
[336883452,1725231043238,-578.75,0.00024657,2]
[336883453,1725231043247,-500.0,0.00024657,2]
[336883454,1725231043256,-500.0,0.00024657,2]
[336883455,1725231043266,-500.0,0.00024657,2]
[336883456,1725231043275,-1488.72,0.00024657,2]
[336883457,1725231043285,-500.0,0.00024657,2]
[336883458,1725231043295,-500.0,0.00024657,2]
[336883460,1725231043304,-500.0,0.00024657,2]
[336883462,1725231043313,-500.0,0.00024657,2]
[336883463,1725231043323,-1799.43,0.00024657,2]
[336883465,1725231043332,-509.6084453,0.00024657,2]
[336883466,1725231043342,-2383.15,0.00024657,2]
[336883467,1725231043352,-500.0,0.00024657,2]
[336883468,1725231043362,-500.0,0.00024657,2]
[336883469,1725231043371,-500.0,0.00024657,2]
[336883470,1725231043380,-500.0,0.00024657,2]
[336883471,1725231043390,-500.0,0.00024657,2]
[336883472,1725231043399,-500.0,0.00024657,2]
[336883473,1725231043409,-735.77,0.00024657,2]
[336883474,1725231043419,-500.0,0.00024657,2]
[336883475,1725231043428,-501.83958934,0.00024657,2]
[336883476,1725231043439,-2777.39,0.00024657,2]
[336883477,1725231043451,-500.0,0.00024657,2]
[336883478,1725231043461,-500.0,0.00024657,2]
[336883479,1725231043471,-1308.24,0.00024657,2]
[336883480,1725231043479,-500.0,0.00024657,2]
[336883481,1725231043489,-500.0,0.00024657,2]
[336883482,1725231043499,-642.18,0.00024657,2]
[336883483,1725231043509,-500.0,0.00024657,2]
[336883484,1725231043519,-2153.31,0.00024657,2]
[336883485,1725231043528,-676.49,0.00024657,2]
[336883487,1725231043537,-1237.74,0.00024657,2]
[336883489,1725231043547,-500.0,0.00024657,2]
[336883490,1725231043558,-700.16,0.00024657,2]
[336883491,1725231043567,-302.37385269,0.00024657,2]
[336883492,1725231043576,-500.0,0.00024657,2]
[336883493,1725231043586,-500.0,0.00024657,2]
[336883494,1725231043596,-500.0,0.00024657,2]
[336883495,1725231043605,-500.0,0.00024657,2]
[336883496,1725231043615,-500.0,0.00024657,2]
[336883497,1725231043624,-500.0,0.00024657,2]
[336883498,1725231043633,-500.0,0.00024657,2]
[336883499,1725231043642,-829.45,0.00024657,2]
[336883500,1725231043652,-500.0,0.00024657,2]
[336883501,1725231043661,-500.0,0.00024657,2]
[336883502,1725231043670,-500.0,0.00024657,2]
[336883503,1725231043679,-500.0,0.00024657,2]
[336883504,1725231043688,-1291.81,0.00024657,2]
[336883505,1725231043700,-500.0,0.00024657,2]
[336883506,1725231043709,-1183.09,0.00024657,2]
[336883507,1725231043720,-1307.61,0.00024657,2]
[336883508,1725231043730,-500.0,0.00024657,2]
[336883509,1725231043741,-500.0,0.00024657,2]
[336883510,1725231043752,-500.0,0.00024657,2]
[336883511,1725231043762,-1718.75,0.00024657,2]
[336883512,1725231043771,-1457.44,0.00024657,2]
[336883513,1725231043781,-500.0,0.00024657,2]
[336883514,1725231043790,-1617.43,0.00024657,2]
[336883515,1725231043799,-500.0,0.00024657,2]
[336883516,1725231043810,-500.0,0.00024657,2]
[336883517,1725231043821,-500.0,0.00024657,2]
[336883518,1725231043831,-500.0,0.00024657,2]
[336883519,1725231043840,-500.0,0.00024657,2]
[336883520,1725231043849,-500.0,0.00024657,2]
[336883521,1725231043859,-500.0,0.00024657,2]
[336883522,1725231043868,-501.29122431,0.00024657,2]
[336883523,1725231044034,-192.6124918,0.00024657,2]
[336883524,1725231044045,-500.0,0.00024657,2]
[336883525,1725231044057,-1146.52,0.00024657,2]
[336883526,1725231044067,-500.0,0.00024657,2]
[336883527,1725231044080,-1889.36,0.00024657,2]
[336883528,1725231044089,-500.0,0.00024657,2]
[336883529,1725231044099,-1623.54,0.00024657,2]
[336883530,1725231044108,-403.36437749,0.00024657,2]
[336883531,1725231044117,-610.83,0.00024657,2]
[336883532,1725231044127,-500.0,0.00024657,2]
[336883533,1725231044136,-500.0,0.00024657,2]
[336883534,1725231044145,-500.0,0.00024657,2]
[336883535,1725231044155,-767.26,0.00024657,2]
[336883536,1725231044165,-500.24314518,0.00024657,2]
[336883537,1725231044175,-500.0,0.00024657,2]
[336883538,1725231044183,-1721.95,0.00024657,2]
[336883539,1725231044192,-500.0,0.00024657,2]
[336883540,1725231044202,-500.0,0.00024657,2]
[336883541,1725231044212,-592.12,0.00024657,2]
[336883542,1725231044221,-500.0,0.00024657,2]
[336883543,1725231044230,-500.0,0.00024657,2]
[336883544,1725231044239,-500.0,0.00024657,2]
[336883545,1725231044249,-500.0,0.00024657,2]
[336883546,1725231044258,-500.0,0.00024657,2]
[336883547,1725231044268,-1158.11,0.00024657,2]
[336883548,1725231044277,-500.0,0.00024657,2]
[336883549,1725231044286,-500.0,0.00024657,2]
[336883550,1725231044295,-669.19,0.00024657,2]
[336883551,1725231044305,-500.0,0.00024657,2]
[336883552,1725231044314,-500.0,0.00024657,2]
[336883553,1725231044324,-468.42360655,0.00024657,2]
[336883554,1725231044334,-2654.23,0.00024657,2]
[336883555,1725231044343,-501.51023586,0.00024657,2]
[336883556,1725231044352,-500.0,0.00024657,2]
[336883557,1725231044361,-7921.31,0.00024657,2]
[336883558,1725231044370,-5971.61,0.00024657,2]
[336883559,1725231044379,-500.0,0.00024657,2]
[336883560,1725231044388,-500.0,0.00024657,2]
[336883561,1725231044398,-500.0,0.00024657,2]
[336883562,1725231044407,-500.0,0.00024657,2]
[336883563,1725231044416,-500.0,0.00024657,2]
[336883564,1725231044426,-1349.33,0.00024657,2]
[336883565,1725231044435,-500.0,0.00024657,2]
[336883566,1725231044445,-698.28,0.00024657,2]
[336883567,1725231044456,-500.0,0.00024657,2]
[336883568,1725231044465,-756.85,0.00024657,2]
[336883569,1725231044474,-501.97666087,0.00024657,2]
[336883570,1725231044483,-500.0,0.00024657,2]
[336883571,1725231044493,-500.0,0.00024657,2]
[336883572,1725231044502,-500.0,0.00024657,2]
[336883573,1725231044511,-591.63282331,0.00024657,2]
[336883574,1725231044521,-1924.19,0.00024657,2]
[336883575,1725231044530,-500.0,0.00024657,2]
[336883576,1725231044540,-1493.12,0.00024657,2]
[336883577,1725231044551,-500.0,0.00024657,2]
[336883578,1725231044562,-1186.94,0.00024657,2]
[336883579,1725231044571,-1651.01,0.00024657,2]
[336883580,1725231044580,-500.0,0.00024657,2]
[336883581,1725231044589,-500.0,0.00024657,2]
[336883582,1725231044599,-578.1198954,0.00024657,2]
[336883583,1725231044608,-1600.65,0.00024657,2]
[336883584,1725231044617,-3213.93,0.00024657,2]
[336883585,1725231044626,-500.0,0.00024657,2]
[336883586,1725231044635,-347.67815756,0.00024657,2]
[336883587,1725231044644,-500.0,0.00024657,2]
[336883588,1725231044655,-500.0,0.00024657,2]
[336883589,1725231044664,-500.0,0.00024657,2]
[336883590,1725231044674,-500.0,0.00024657,2]
[336883591,1725231044683,-2239.3,0.00024657,2]
[336883592,1725231044693,-502.17971917,0.00024657,2]
[336883593,1725231044703,-500.0,0.00024657,2]
[336883594,1725231044713,-500.0,0.00024657,2]
[336883595,1725231044722,-1886.64,0.00024657,2]
[336883596,1725231044731,-500.0,0.00024657,2]
[336883597,1725231044741,-2024.17,0.00024657,2]
[336883598,1725231044751,-500.0,0.00024657,2]
[336883599,1725231044760,-500.0,0.00024657,2]
[336883600,1725231044769,-500.0,0.00024657,2]
[336883601,1725231044779,-500.0,0.00024657,2]
[336883602,1725231044788,-1064.73,0.00024657,2]
[336883603,1725231044797,-500.0,0.00024657,2]
[336883604,1725231044807,-528.39,0.00024657,2]
[336883605,1725231044816,-200.0,0.00024657,2]
[336883606,1725231044826,-1067.89,0.00024657,2]
[336883607,1725231044835,-500.0,0.00024657,2]
[336883608,1725231044845,-500.0,0.00024657,2]
[336883609,1725231044854,-500.0,0.00024657,2]
[336883610,1725231044864,-1425.41,0.00024657,2]
[336883611,1725231044874,-269.60465178,0.00024657,2]
[336883612,1725231044903,-230.39534822,0.00024657,2]
[336883613,1725231044913,-500.0,0.00024657,2]
[336883614,1725231044923,-203.94085442,0.00024657,2]
[336883615,1725231044938,-329.1579,0.00024657,2]
[336883616,1725231045177,-4168.49057248,0.00024557,2]
[336883617,1725231045186,-884.18124558,0.00024657,2]
[336883618,1725231045195,-500.0,0.00024657,2]
[336883619,1725231045205,-500.0,0.00024657,2]
[336883620,1725231045214,-305.46657579,0.00024657,2]
[336883621,1725231045224,-500.0,0.00024657,2]
[336883622,1725231045233,-500.0,0.00024657,2]
[336883623,1725231045242,-1311.8,0.00024657,2]
[336883624,1725231045252,-500.0,0.00024657,2]
[336883625,1725231045261,-500.0,0.00024657,2]
[336883626,1725231045270,-500.0,0.00024657,2]
[336883627,1725231045279,-500.0,0.00024657,2]
[336883628,1725231045288,-500.0,0.00024657,2]
[336883629,1725231045298,-200.0,0.00024658,15]
[336883630,1725231045307,-380.0,0.00024658,2]
[336883631,1725231045316,-4771.61545486,0.0002467,2]
[336883632,1725231045325,-500.0,0.00024673,2]
[336883633,1725231045335,-525.08411004,0.00024693,2]
[336883634,1725231045345,-525.08411004,0.00024829,2]
[336883635,1725231045354,-1474.92445629,0.00024831,2]
[336883636,1725231045364,-150.0,0.00024834,2]
[336883637,1725231045376,-500.0,0.00024851,2]
[336883638,1725231045386,-150.112233,0.000249,5]
[336883639,1725231045395,-9634.30482306,0.00024921,3]
[336883640,1725231045404,-500.0,0.0002493,2]
[336883641,1725231045413,-500.0,0.0002493,2]
[336883642,1725231045423,-500.0,0.0002493,2]
[336883643,1725231045432,-1575.23,0.0002493,2]
[336883644,1725231045442,-1575.23,0.0002493,2]
[336883645,1725231045451,-1575.23,0.0002493,2]
[336883646,1725231045462,-1575.23,0.0002493,2]
[336883647,1725231045473,-1575.23,0.0002493,2]
[336883648,1725231045484,-1575.23,0.0002493,2]
[336883649,1725231045494,-500.0,0.0002493,2]
[336883650,1725231045503,-500.0,0.0002493,2]
[336883651,1725231045512,-500.0,0.0002493,2]
[336883652,1725231045522,-218.86,0.0002493,2]
[336883653,1725231045531,-500.0,0.00024931,2]
[336883654,1725231045540,-1188.0,0.00024931,2]
[336883655,1725231045549,-500.0,0.00024931,2]
[336883656,1725231045559,-500.0,0.00024931,2]
[336883657,1725231045568,-206.90056765,0.00024931,2]
[336883658,1725231045577,-500.0,0.00024931,2]
[336883659,1725231045586,-500.0,0.00024931,2]
[336883660,1725231045597,-802.19,0.00024931,2]
[336883661,1725231045606,-540.57,0.00024931,2]
[336883662,1725231045615,-500.0,0.00024931,2]
[336883663,1725231045624,-500.0,0.00024931,2]
[336883664,1725231045633,-500.0,0.00024931,2]
[336883665,1725231045642,-500.0,0.00024931,2]
[336883666,1725231045652,-500.0,0.00024931,2]
[336883667,1725231045661,-618.66,0.00024931,2]
[336883668,1725231045671,-500.0,0.00024931,2]
[336883669,1725231045681,-500.0,0.00024931,2]
[336883670,1725231045691,-500.0,0.00024931,2]
[336883671,1725231045702,-500.0,0.00024931,2]
[336883672,1725231045711,-500.0,0.00024931,2]
[336883673,1725231045720,-509.52,0.00024931,2]
[336883674,1725231045730,-271.67780194,0.00024931,2]
[336883675,1725231045739,-500.0,0.00024931,2]
[336883676,1725231045749,-500.0,0.00024931,2]
[336883677,1725231045758,-500.0,0.00024931,2]
[336883678,1725231045768,-500.0,0.00024931,2]
[336883679,1725231045777,-500.0,0.00024931,2]
[336883680,1725231045786,-500.0,0.00024931,2]
[336883681,1725231045795,-500.0,0.00024931,2]
[336883682,1725231045804,-500.0,0.00024931,2]
[336883683,1725231045813,-577.58,0.00024931,2]
[336883684,1725231045823,-620.3,0.00024931,2]
[336883685,1725231045832,-500.0,0.00024931,2]
[336883686,1725231045841,-500.0,0.00024931,2]
[336883688,1725231045851,-500.0,0.00024931,2]
[336883689,1725231045860,-500.0,0.00024931,2]
[336883690,1725231045869,-500.0,0.00024931,2]
[336883691,1725231045878,-500.0,0.00024931,2]
[336883693,1725231045888,-500.0,0.00024931,2]
[336883695,1725231045898,-500.0,0.00024931,2]
[336883697,1725231045907,-500.0,0.00024931,2]
[336883698,1725231045917,-1023.67,0.00024931,2]
[336883699,1725231045926,-504.04555161,0.00024931,2]
[336883700,1725231045936,-500.0,0.00024931,2]
[336883701,1725231045945,-500.0,0.00024931,2]
[336883702,1725231045956,-500.0,0.00024931,2]
[336883703,1725231045965,-500.0,0.00024931,2]
[336883704,1725231045974,-669.27,0.00024931,2]
[336883705,1725231045983,-187.89479241,0.00024931,2]
[336883708,1725231045992,-500.0,0.00024931,2]
[336883711,1725231046002,-500.0,0.00024931,2]
[336883713,1725231046012,-500.0,0.00024931,2]
[336883716,1725231046021,-503.56710317,0.00024931,2]
[336883718,1725231046030,-500.0,0.00024931,2]
[336883720,1725231046039,-500.0,0.00024931,2]
[336883722,1725231046048,-500.0,0.00024931,2]
[336883723,1725231046057,-847.6,0.00024931,2]
[336883725,1725231046067,-500.0,0.00024931,2]
[336883729,1725231046079,-500.0,0.00024931,2]
[336883732,1725231046088,-707.87,0.00024931,2]
[336883735,1725231046097,-505.35678504,0.00024931,2]
[336883737,1725231046106,-500.0,0.00024931,2]
[336883739,1725231046115,-529.34,0.00024931,2]
[336883742,1725231046126,-500.0,0.00024931,2]
[336883743,1725231046138,-500.0,0.00024931,2]
[336883746,1725231046147,-500.0,0.00024931,2]
[336883747,1725231046156,-500.0,0.00024931,2]
[336883750,1725231046166,-500.0,0.00024931,2]
[336883753,1725231046175,-500.0,0.00024931,2]
[336883755,1725231046184,-500.0,0.00024931,2]
[336883757,1725231046193,-500.0,0.00024931,2]
[336883758,1725231046203,-500.0,0.00024931,2]
[336883759,1725231046212,-500.0,0.00024931,2]
[336883760,1725231046221,-500.0,0.00024931,2]
[336883761,1725231046230,-500.0,0.00024931,2]
[336883762,1725231046240,-500.0,0.00024931,2]
[336883763,1725231046249,-500.0,0.00024931,2]
[336883764,1725231046258,-500.0,0.00024931,2]
[336883765,1725231046267,-500.0,0.00024931,2]
[336883766,1725231046276,-461.40907727,0.00024931,2]
[336883767,1725231046285,-500.0,0.00024931,2]
[336883768,1725231046295,-504.64872471,0.00024931,2]
[336883770,1725231046304,-500.0,0.00024931,2]
[336883771,1725231046313,-3872.89,0.00024931,2]
[336883773,1725231046322,-500.0,0.00024931,2]
[336883774,1725231046331,-500.0,0.00024931,2]
[336883775,1725231046341,-500.0,0.00024931,2]
[336883777,1725231046350,-500.0,0.00024931,2]
[336883778,1725231046359,-500.0,0.00024931,2]
[336883779,1725231046368,-500.0,0.00024931,2]
[336883780,1725231046377,-500.0,0.00024931,2]
[336883781,1725231046387,-1268.25,0.00024931,2]
[336883782,1725231046396,-500.0,0.00024931,2]
[336883783,1725231046406,-523.29,0.00024931,2]
[336883784,1725231046416,-612.85,0.00024931,2]
[336883785,1725231046426,-500.0,0.00024931,2]
[336883786,1725231046436,-500.0,0.00024931,2]
[336883787,1725231046446,-653.32,0.00024931,2]
[336883788,1725231046456,-500.0,0.00024931,2]
[336883789,1725231046465,-500.0,0.00024931,2]
[336883790,1725231046473,-691.61,0.00024931,2]
[336883791,1725231046482,-817.91,0.00024931,2]
[336883793,1725231046491,-500.0,0.00024931,2]
[336883794,1725231046501,-500.0,0.00024931,2]
[336883795,1725231046510,-500.0,0.00024931,2]
[336883796,1725231046519,-500.0,0.00024931,2]
[336883797,1725231046528,-500.0,0.00024931,2]
[336883798,1725231046538,-500.0,0.00024931,2]
[336883799,1725231046547,-500.0,0.00024931,2]
[336883800,1725231046557,-500.0,0.00024931,2]
[336883801,1725231046567,-500.0,0.00024931,2]
[336883802,1725231046577,-500.0,0.00024931,2]
[336883803,1725231046586,-500.0,0.00024931,2]
[336883804,1725231046595,-500.0,0.00024931,2]
[336883805,1725231046605,-500.0,0.00024931,2]
[336883806,1725231046614,-574.85,0.00024931,2]
[336883807,1725231046624,-500.0,0.00024931,2]
[336883821,1725231046752,-500.0,0.00024931,2]
[336883822,1725231046762,-500.0,0.00024931,2]
[336883823,1725231046771,-556.61,0.00024931,2]
[336883824,1725231046781,-500.0,0.00024931,2]
[336883825,1725231046790,-500.0,0.00024931,2]
[336883826,1725231046800,-1149.65,0.00024931,2]
[336883827,1725231046809,-500.0,0.00024931,2]
[336883828,1725231046818,-500.0,0.00024931,2]
[336883829,1725231046829,-505.55047737,0.00024931,2]
[336883830,1725231046839,-500.0,0.00024931,2]
[336883831,1725231046848,-900.11,0.00024931,2]
[336883832,1725231046857,-500.0,0.00024931,2]
[336883833,1725231046868,-500.0,0.00024931,2]
[336883834,1725231046877,-500.0,0.00024931,2]
[336883835,1725231046886,-860.62,0.00024931,2]
[336883836,1725231046896,-500.0,0.00024931,2]
[336883837,1725231046905,-523.13785599,0.00024931,2]
[336883838,1725231046915,-500.0,0.00024931,2]
[336883839,1725231046924,-500.0,0.00024931,2]
[336883840,1725231046934,-500.0,0.00024931,2]
[336883841,1725231046944,-500.0,0.00024931,2]
[336883842,1725231046956,-500.0,0.00024931,2]
[336883843,1725231046966,-500.0,0.00024931,2]
[336883844,1725231046976,-620.78,0.00024931,2]
[336883845,1725231046987,-1901.99,0.00024931,2]
[336883846,1725231046997,-638.19648141,0.00024931,2]
[336883847,1725231047006,-500.0,0.00024931,2]
[336883848,1725231047016,-721.97,0.00024931,2]
[336883849,1725231047025,-725.22,0.00024931,2]
[336883850,1725231047035,-500.0,0.00024931,2]
[336883851,1725231047044,-500.0,0.00024931,2]
[336883852,1725231047054,-500.0,0.00024931,2]
[336883853,1725231047063,-1524.5,0.00024931,2]
[336883854,1725231047076,-500.0,0.00024931,2]
[336883855,1725231047085,-500.0,0.00024931,2]
[336883856,1725231047095,-500.0,0.00024931,2]
[336883857,1725231047104,-500.0,0.00024931,2]
[336883858,1725231047114,-2130.28,0.00024931,2]
[336883859,1725231047124,-500.0,0.00024931,2]
[336883860,1725231047133,-500.0,0.00024931,2]
[336883861,1725231047142,-500.0,0.00024931,2]
[336883862,1725231047155,-500.0,0.00024931,2]
[336883863,1725231047165,-500.0,0.00024931,2]
[336883864,1725231047175,-500.0,0.00024931,2]
[336883865,1725231047184,-500.0,0.00024931,2]
[336883866,1725231047193,-500.0,0.00024931,2]
[336883867,1725231047205,-500.0,0.00024931,2]
[336883868,1725231047214,-500.0,0.00024931,2]
[336883869,1725231047224,-500.0,0.00024931,2]
[336883870,1725231047233,-831.65,0.00024931,2]
[336883871,1725231047242,-500.0,0.00024931,2]
[336883872,1725231047252,-500.0,0.00024931,2]
[336883873,1725231047261,-500.0,0.00024931,2]
[336883874,1725231047270,-500.0,0.00024931,2]
[336883875,1725231047280,-847.42,0.00024931,2]
[336883876,1725231047290,-500.0,0.00024931,2]
[336883877,1725231047299,-500.0,0.00024931,2]
[336883878,1725231047309,-500.0,0.00024931,2]
[336883879,1725231047318,-500.0,0.00024931,2]
[336883880,1725231047327,-500.0,0.00024931,2]
[336883881,1725231047337,-500.0,0.00024931,2]
[336883882,1725231047346,-604.02,0.00024931,2]
[336883883,1725231047355,-500.0,0.00024931,2]
[336883884,1725231047365,-500.0,0.00024931,2]
[336883885,1725231047375,-500.0,0.00024931,2]
[336883886,1725231047385,-500.0,0.00024931,2]
[336883887,1725231047394,-1438.74,0.00024931,2]
[336883888,1725231047403,-500.0,0.00024931,2]
[336883889,1725231047412,-870.66,0.00024931,2]
[336883890,1725231047421,-500.0,0.00024931,2]
[336883891,1725231047431,-500.0,0.00024931,2]
[336883892,1725231047440,-534.37,0.00024931,2]
[336883893,1725231047449,-1498.55,0.00024931,2]
[336883894,1725231047459,-500.0,0.00024931,2]
[336883895,1725231047468,-720.6,0.00024931,2]
[336883896,1725231047477,-500.0,0.00024931,2]
[336883897,1725231047487,-682.69,0.00024931,2]
[336883898,1725231047496,-500.0,0.00024931,2]
[336883899,1725231047505,-500.0,0.00024931,2]
[336883900,1725231047515,-1384.51,0.00024931,2]
[336883901,1725231047524,-500.0,0.00024931,2]
[336883902,1725231047534,-500.0,0.00024931,2]
[336883903,1725231047544,-500.0,0.00024931,2]
[336883904,1725231047554,-574.05,0.00024931,2]
[336883905,1725231047565,-500.0,0.00024931,2]
[336883906,1725231047574,-500.0,0.00024931,2]
[336883907,1725231047583,-2143.46,0.00024931,2]
[336883908,1725231047593,-500.0,0.00024931,2]
[336883909,1725231047603,-500.0,0.00024931,2]
[336883910,1725231047612,-500.0,0.00024931,2]
[336883911,1725231047622,-2268.39,0.00024931,2]
[336883912,1725231047631,-1385.56,0.00024931,2]
[336883913,1725231047644,-500.0,0.00024931,2]
[336883914,1725231047653,-500.0,0.00024931,2]
[336883915,1725231047663,-500.0,0.00024931,2]
[336883916,1725231047673,-803.71,0.00024931,2]
[336883917,1725231047683,-500.0,0.00024931,2]
[336883918,1725231047692,-1982.74,0.00024931,2]
[336883919,1725231047702,-506.95692008,0.00024931,2]
[336883920,1725231047711,-1780.09,0.00024931,2]
[336883921,1725231047720,-500.0,0.00024931,2]
[336883922,1725231047730,-997.47,0.00024931,2]
[336883923,1725231047740,-500.0,0.00024931,2]
[336883924,1725231047750,-515.15,0.00024931,2]
[336883925,1725231047760,-663.41,0.00024931,2]
[336883926,1725231047770,-500.0,0.00024931,2]
[336883927,1725231047780,-500.0,0.00024931,2]
[336883928,1725231047789,-500.0,0.00024931,2]
[336883929,1725231047799,-500.0,0.00024931,2]
[336883930,1725231047809,-500.0,0.00024931,2]
[336883931,1725231047818,-500.0,0.00024931,2]
[336883932,1725231047829,-500.0,0.00024931,2]
[336883933,1725231047838,-500.0,0.00024931,2]
[336883934,1725231047848,-2956.97,0.00024931,2]
[336883935,1725231047858,-500.0,0.00024931,2]
[336883936,1725231047867,-500.0,0.00024931,2]
[336883937,1725231047877,-2744.2,0.00024931,2]
[336883938,1725231047887,-500.0,0.00024931,2]
[336883939,1725231047897,-792.31,0.00024931,2]
[336883940,1725231047906,-500.0,0.00024931,2]
[336883941,1725231047916,-500.0,0.00024931,2]
[336883942,1725231047925,-1066.0,0.00024931,2]
[336883943,1725231047935,-500.0,0.00024931,2]
[336883944,1725231047945,-1769.05,0.00024931,2]
[336883945,1725231047955,-805.35,0.00024931,2]
[336883946,1725231047965,-500.0,0.00024931,2]
[336883947,1725231047974,-12931.66,0.00024931,2]
[336883948,1725231047983,-638.17,0.00024931,2]
[336883949,1725231047994,-500.0,0.00024931,2]
[336883950,1725231048004,-578.75,0.00024931,2]
[336883951,1725231048013,-500.0,0.00024931,2]
[336883952,1725231048024,-500.0,0.00024931,2]
[336883953,1725231048034,-471.66990104,0.00024931,2]
[336883954,1725231048044,-1488.72,0.00024931,2]
[336883955,1725231048055,-500.0,0.00024931,2]
[336883956,1725231048065,-500.0,0.00024931,2]
[336883957,1725231048080,-500.0,0.00024931,2]
[336883958,1725231048090,-1799.43,0.00024931,2]
[336883959,1725231048099,-2383.15,0.00024931,2]
[336883960,1725231048109,-500.0,0.00024931,2]
[336883961,1725231048119,-500.0,0.00024931,2]
[336883962,1725231048128,-500.0,0.00024931,2]
[336883963,1725231048137,-735.77,0.00024931,2]
[336883964,1725231048146,-500.0,0.00024931,2]
[336883965,1725231048156,-2777.39,0.00024931,2]
[336883966,1725231048166,-501.58213849,0.00024931,2]
[336883967,1725231048175,-500.0,0.00024931,2]
[336883968,1725231048185,-1308.24,0.00024931,2]
[336883969,1725231048194,-500.0,0.00024931,2]
[336883970,1725231048204,-500.0,0.00024931,2]
[336883971,1725231048214,-642.18,0.00024931,2]
[336883972,1725231048223,-500.0,0.00024931,2]
[336883973,1725231048233,-2153.31,0.00024931,2]
[336883974,1725231048242,-676.49,0.00024931,2]
[336883975,1725231048251,-1237.74,0.00024931,2]